[Event "*** Titled Tuesday Blitz"]
[Site "Chess.com"]
[Date "2020.03.03"]
[Round "6"]
[White "vladimirdamjanovic"]
[Black "Palacios-LLera"]
[Result "0-1"]
[WhiteElo "2633"]
[BlackElo "2539"]
[TimeControl "180+1"]
[EndTime "10:03:14 PST"]
[Termination "Palacios-LLera won on time"]

1. e4 {[%clk 0:03:00.9]} 1... c5 {[%clk 0:02:59.6]} 2. Nf3 {[%clk 0:03:00.2]}
2... Nc6 {[%clk 0:02:59.5]} 3. d4 {[%clk 0:02:59.8]} 3... cxd4 {[%clk
0:02:59.4]} 4. Nxd4 {[%clk 0:03:00.7]} 4... g6 {[%clk 0:02:59.7]} 5. Nc3 {[%clk
0:03:00.2]} 5... Bg7 {[%clk 0:02:59.4]} 6. Be3 {[%clk 0:03:00.7]} 6... Nf6
{[%clk 0:02:59.7]} 7. Bc4 {[%clk 0:03:00.7]} 7... d6 {[%clk 0:03:00]} 8. f3
{[%clk 0:03:00.1]} 8... Bd7 {[%clk 0:03:00]} 9. Bb3 {[%clk 0:03:00.6]} 9... a5
{[%clk 0:02:59.1]} 10. a3 {[%clk 0:03:00.3]} 10... h5 {[%clk 0:02:52.5]} 11. Qd2
{[%clk 0:02:55.5]} 11... Qc8 {[%clk 0:02:45.2]} 12. O-O-O {[%clk 0:02:46.8]}
12... Ne5 {[%clk 0:02:43.5]} 13. Qe2 {[%clk 0:02:16.4]} 13... a4 {[%clk
0:02:41.9]} 14. Ba2 {[%clk 0:02:15.5]} 14... Ra5 {[%clk 0:02:40.7]} 15. Nd5
{[%clk 0:02:06.4]} 15... Nxd5 {[%clk 0:02:34.8]} 16. exd5 {[%clk 0:01:54.4]}
16... Rc5 {[%clk 0:02:17.4]} 17. Rhe1 {[%clk 0:01:52.1]} 17... O-O {[%clk
0:02:12.8]} 18. Bg5 {[%clk 0:01:30.9]} 18... Re8 {[%clk 0:02:07.3]} 19. Kb1
{[%clk 0:01:29.4]} 19... Kh7 {[%clk 0:01:14.2]} 20. h3 {[%clk 0:01:28.6]} 20...
Nc4 {[%clk 0:01:07.7]} 21. g4 {[%clk 0:01:21.9]} 21... hxg4 {[%clk 0:00:58.4]}
22. hxg4 {[%clk 0:01:19.4]} 22... Kg8 {[%clk 0:00:57.5]} 23. c3 {[%clk
0:00:41.2]} 23... b5 {[%clk 0:00:54.6]} 24. Rh1 {[%clk 0:00:34.7]} 24... Rxd5
{[%clk 0:00:49.7]} 25. Bh6 {[%clk 0:00:34.6]} 25... e5 {[%clk 0:00:23]} 26. Bxg7
{[%clk 0:00:30.2]} 26... Kxg7 {[%clk 0:00:18.7]} 27. Qh2 {[%clk 0:00:25.2]}
27... Rh8 {[%clk 0:00:16.4]} 28. Qg2 {[%clk 0:00:11.2]} 28... exd4 {[%clk
0:00:14.7]} 29. Rxh8 {[%clk 0:00:11.2]} 29... Qxh8 {[%clk 0:00:13.8]} 30. Rh1
{[%clk 0:00:11.8]} 30... Qg8 {[%clk 0:00:14]} 31. Qh2 {[%clk 0:00:09.6]} 31...
Kf8 {[%clk 0:00:13.9]} 32. cxd4 {[%clk 0:00:07.9]} 32... Rxd4 {[%clk 0:00:13]}
33. Qh4 {[%clk 0:00:07.3]} 33... Ke8 {[%clk 0:00:11.2]} 34. Re1+ {[%clk
0:00:06.1]} 34... Ne5 {[%clk 0:00:10.7]} 35. Qf6 {[%clk 0:00:03.9]} 35... g5
{[%clk 0:00:08.2]} 36. Rxe5+ {[%clk 0:00:03.5]} 36... dxe5 {[%clk 0:00:08]} 37.
Qxe5+ {[%clk 0:00:04.4]} 37... Kd8 {[%clk 0:00:06.6]} 38. Qxd4 {[%clk 0:00:05]}
38... Qg6+ {[%clk 0:00:06.9]} 39. Ka1 {[%clk 0:00:04.5]} 39... Qc6 {[%clk
0:00:06.1]} 40. Bxf7 {[%clk 0:00:02.7]} 40... Qxf3 {[%clk 0:00:04.4]} 0-1

[Event "*** Titled Tuesday Blitz"]
[Site "Chess.com"]
[Date "2020.03.03"]
[Round "6"]
[White "Sunnika"]
[Black "Saloni1299"]
[Result "1/2-1/2"]
[WhiteElo "2399"]
[BlackElo "2068"]
[TimeControl "180+1"]
[EndTime "10:03:14 PST"]
[Termination "Game drawn by repetition"]

1. d4 {[%clk 0:03:00.9]} 1... Nf6 {[%clk 0:02:57.2]} 2. c4 {[%clk 0:03:01.2]}
2... g6 {[%clk 0:02:56.8]} 3. g3 {[%clk 0:03:00.7]} 3... c6 {[%clk 0:02:55.7]}
4. Bg2 {[%clk 0:02:57.6]} 4... d5 {[%clk 0:02:54.8]} 5. Qa4 {[%clk 0:02:49.4]}
5... Nfd7 {[%clk 0:02:54.7]} 6. cxd5 {[%clk 0:02:47.9]} 6... Nb6 {[%clk
0:02:54.8]} 7. Qd1 {[%clk 0:02:47.1]} 7... cxd5 {[%clk 0:02:55.7]} 8. Nc3 {[%clk
0:02:47]} 8... Bg7 {[%clk 0:02:52.7]} 9. e3 {[%clk 0:02:45.7]} 9... O-O {[%clk
0:02:50.9]} 10. Nge2 {[%clk 0:02:46.1]} 10... Bf5 {[%clk 0:02:40.1]} 11. O-O
{[%clk 0:02:40.8]} 11... Qd7 {[%clk 0:02:40.2]} 12. Nf4 {[%clk 0:02:40.1]} 12...
e6 {[%clk 0:02:28.9]} 13. g4 {[%clk 0:02:39.7]} 13... g5 {[%clk 0:02:24.3]} 14.
Nh5 {[%clk 0:02:34.2]} 14... Bg6 {[%clk 0:02:21]} 15. Nxg7 {[%clk 0:02:33.5]}
15... Kxg7 {[%clk 0:02:21.6]} 16. e4 {[%clk 0:02:20.2]} 16... Nc6 {[%clk
0:02:16.7]} 17. exd5 {[%clk 0:02:14.1]} 17... Nxd5 {[%clk 0:02:11.3]} 18. Nxd5
{[%clk 0:02:10.3]} 18... exd5 {[%clk 0:02:12.2]} 19. Bxg5 {[%clk 0:02:09.9]}
19... Rae8 {[%clk 0:02:01.5]} 20. Be3 {[%clk 0:02:08.6]} 20... Nb4 {[%clk
0:01:57]} 21. Qd2 {[%clk 0:01:53.6]} 21... Nc2 {[%clk 0:00:49.7]} 22. Bh6+
{[%clk 0:01:51.7]} 22... Kg8 {[%clk 0:00:49.9]} 23. Rac1 {[%clk 0:01:38]} 23...
Rc8 {[%clk 0:00:26.6]} 24. Bxf8 {[%clk 0:01:36]} 24... Kxf8 {[%clk 0:00:27.5]}
25. Qh6+ {[%clk 0:01:21.8]} 25... Kg8 {[%clk 0:00:26.4]} 26. Qg5 {[%clk
0:01:21.6]} 26... Nxd4 {[%clk 0:00:22.1]} 27. Rcd1 {[%clk 0:00:33.1]} 27... Ne2+
{[%clk 0:00:16.7]} 28. Kh1 {[%clk 0:00:32.7]} 28... d4 {[%clk 0:00:17]} 29. Bf3
{[%clk 0:00:16.5]} 29... d3 {[%clk 0:00:14.3]} 30. Rfe1 {[%clk 0:00:15.2]} 30...
Qe6 {[%clk 0:00:10.3]} 31. Rd2 {[%clk 0:00:12.6]} 31... Rc2 {[%clk 0:00:06.1]}
32. Rxc2 {[%clk 0:00:08.2]} 32... Ng3+ {[%clk 0:00:04.4]} 33. hxg3 {[%clk
0:00:07]} 33... Qxe1+ {[%clk 0:00:03.1]} 34. Kg2 {[%clk 0:00:06]} 34... dxc2
{[%clk 0:00:03.6]} 35. Qd8+ {[%clk 0:00:06]} 35... Kg7 {[%clk 0:00:03.8]} 36.
Qd4+ {[%clk 0:00:06.3]} 36... Kg8 {[%clk 0:00:04.3]} 37. Qd8+ {[%clk 0:00:06.1]}
37... Kg7 {[%clk 0:00:04.8]} 38. Qd4+ {[%clk 0:00:06.6]} 38... Kg8 {[%clk
0:00:04.9]} 39. Qd8+ {[%clk 0:00:06.4]} 1/2-1/2

[Event "*** Titled Tuesday Blitz"]
[Site "Chess.com"]
[Date "2020.03.03"]
[Round "6"]
[White "yoolund"]
[Black "VALPARAISO37"]
[Result "0-1"]
[WhiteElo "2603"]
[BlackElo "2400"]
[TimeControl "180+1"]
[EndTime "10:03:16 PST"]
[Termination "VALPARAISO37 won on time"]

1. d4 {[%clk 0:03:00.9]} 1... Nf6 {[%clk 0:02:59.5]} 2. Bg5 {[%clk 0:02:58.4]}
2... c5 {[%clk 0:02:59.1]} 3. Bxf6 {[%clk 0:02:55.5]} 3... exf6 {[%clk
0:02:58.9]} 4. d5 {[%clk 0:02:54.4]} 4... f5 {[%clk 0:02:54.9]} 5. c4 {[%clk
0:02:53.2]} 5... g6 {[%clk 0:02:54.4]} 6. Nc3 {[%clk 0:02:51.3]} 6... d6 {[%clk
0:02:53.7]} 7. g3 {[%clk 0:02:43.5]} 7... Bg7 {[%clk 0:02:53.6]} 8. Bg2 {[%clk
0:02:42.9]} 8... Qa5 {[%clk 0:02:53.3]} 9. Nf3 {[%clk 0:02:38.4]} 9... Qb4
{[%clk 0:02:48.8]} 10. Qc2 {[%clk 0:01:15.3]} 10... Qxc4 {[%clk 0:02:43.9]} 11.
O-O {[%clk 0:01:13]} 11... O-O {[%clk 0:02:43.7]} 12. Nd2 {[%clk 0:00:49.7]}
12... Qa6 {[%clk 0:02:42.7]} 13. a4 {[%clk 0:00:45.6]} 13... Bxc3 {[%clk
0:02:24.8]} 14. Qxc3 {[%clk 0:00:41.8]} 14... Qxe2 {[%clk 0:02:24.7]} 15. Rfe1
{[%clk 0:00:35.9]} 15... Qa6 {[%clk 0:02:24.2]} 16. h4 {[%clk 0:00:25]} 16...
Nd7 {[%clk 0:02:23.9]} 17. h5 {[%clk 0:00:24.8]} 17... gxh5 {[%clk 0:02:05.8]}
18. Bf1 {[%clk 0:00:20.8]} 18... Qb6 {[%clk 0:02:03.7]} 19. Nc4 {[%clk
0:00:19.6]} 19... Qc7 {[%clk 0:02:02.4]} 20. Re7 {[%clk 0:00:14.6]} 20... Qd8
{[%clk 0:02:02.4]} 21. Rae1 {[%clk 0:00:12.7]} 21... Ne5 {[%clk 0:02:02.3]} 22.
R1xe5 {[%clk 0:00:11.9]} 22... dxe5 {[%clk 0:02:01.7]} 23. Qxe5 {[%clk
0:00:12.8]} 23... f6 {[%clk 0:01:58.8]} 24. Qe3 {[%clk 0:00:10.1]} 24... Qxd5
{[%clk 0:01:14.6]} 25. Qh6 {[%clk 0:00:08.3]} 25... Qf7 {[%clk 0:01:03.3]} 26.
Rxf7 {[%clk 0:00:08]} 26... Rxf7 {[%clk 0:01:02]} 27. Nd6 {[%clk 0:00:07.6]}
27... Be6 {[%clk 0:01:02.3]} 28. Nxf7 {[%clk 0:00:05.5]} 28... Bxf7 {[%clk
0:01:02.2]} 29. Qf4 {[%clk 0:00:06.4]} 29... b6 {[%clk 0:00:56.4]} 30. Bg2
{[%clk 0:00:07.3]} 30... Re8 {[%clk 0:00:55.5]} 31. Qxf5 {[%clk 0:00:07.3]}
31... Re1+ {[%clk 0:00:55.6]} 32. Kh2 {[%clk 0:00:06.8]} 32... Kg7 {[%clk
0:00:55.7]} 33. Bf3 {[%clk 0:00:02.8]} 33... Re5 {[%clk 0:00:50.4]} 34. Qf4
{[%clk 0:00:03.7]} 34... Be6 {[%clk 0:00:42.1]} 35. Kg2 {[%clk 0:00:03.6]} 35...
c4 {[%clk 0:00:34.5]} 36. Qd2 {[%clk 0:00:03.2]} 36... Ra5 {[%clk 0:00:17.9]}
37. Qd6 {[%clk 0:00:03.2]} 37... Bf7 {[%clk 0:00:17.2]} 38. Qc7 {[%clk
0:00:03.2]} 38... Kg6 {[%clk 0:00:17]} 0-1

[Event "*** Titled Tuesday Blitz"]
[Site "Chess.com"]
[Date "2020.03.03"]
[Round "6"]
[White "ZEN-22"]
[Black "tbalabayev"]
[Result "0-1"]
[WhiteElo "2203"]
[BlackElo "2445"]
[TimeControl "180+1"]
[EndTime "10:03:22 PST"]
[Termination "tbalabayev won by checkmate"]

1. e3 {[%clk 0:03:00.9]} 1... d6 {[%clk 0:02:57.4]} 2. Ne2 {[%clk 0:03:01.8]}
2... e5 {[%clk 0:02:57.1]} 3. d4 {[%clk 0:03:02.7]} 3... Nd7 {[%clk 0:02:55.3]}
4. g3 {[%clk 0:03:02.5]} 4... Ngf6 {[%clk 0:02:54.8]} 5. Bg2 {[%clk 0:03:03]}
5... g6 {[%clk 0:02:55.3]} 6. h4 {[%clk 0:03:01.7]} 6... Bg7 {[%clk 0:02:55.1]}
7. Nbc3 {[%clk 0:02:59.8]} 7... O-O {[%clk 0:02:51.9]} 8. b3 {[%clk 0:02:58.5]}
8... Re8 {[%clk 0:02:49.5]} 9. Bb2 {[%clk 0:02:58.3]} 9... e4 {[%clk 0:02:46.8]}
10. h5 {[%clk 0:02:55.9]} 10... d5 {[%clk 0:02:40.1]} 11. hxg6 {[%clk
0:02:55.6]} 11... fxg6 {[%clk 0:02:36.4]} 12. g4 {[%clk 0:02:55.3]} 12... c6
{[%clk 0:02:32.3]} 13. g5 {[%clk 0:02:55.3]} 13... Nh5 {[%clk 0:02:30.7]} 14.
Rxh5 {[%clk 0:02:52.2]} 14... gxh5 {[%clk 0:02:30.3]} 15. Nf4 {[%clk 0:02:51.2]}
15... Qxg5 {[%clk 0:02:26.4]} 16. Qxh5 {[%clk 0:02:51.6]} 16... Qxh5 {[%clk
0:02:25.5]} 17. Nxh5 {[%clk 0:02:51.6]} 17... Nf6 {[%clk 0:02:20.8]} 18. Nxg7
{[%clk 0:02:44.2]} 18... Kxg7 {[%clk 0:02:20.3]} 19. Ba3 {[%clk 0:02:45.1]}
19... Bg4 {[%clk 0:02:11.7]} 20. Bd6 {[%clk 0:02:44.5]} 20... h5 {[%clk
0:02:07.9]} 21. Kd2 {[%clk 0:02:43.7]} 21... Kf7 {[%clk 0:02:02.6]} 22. Rg1
{[%clk 0:02:43.5]} 22... Rg8 {[%clk 0:02:01.8]} 23. Rh1 {[%clk 0:02:37.5]} 23...
Rh8 {[%clk 0:01:48.9]} 24. Bg3 {[%clk 0:02:33.3]} 24... Rag8 {[%clk 0:01:45.7]}
25. Bh4 {[%clk 0:02:29.5]} 25... Ne8 {[%clk 0:01:40.5]} 26. Rh2 {[%clk
0:02:28.7]} 26... Nd6 {[%clk 0:01:40.1]} 27. Bg3 {[%clk 0:02:26.1]} 27... Nf5
{[%clk 0:01:39.2]} 28. Be5 {[%clk 0:02:26.5]} 28... Rh7 {[%clk 0:01:38.9]} 29.
Ne2 {[%clk 0:02:20.7]} 29... Ne7 {[%clk 0:01:19.8]} 30. Nf4 {[%clk 0:02:16.2]}
30... Ng6 {[%clk 0:01:17.8]} 31. Nxg6 {[%clk 0:02:13]} 31... Rxg6 {[%clk
0:01:17.4]} 32. Bg3 {[%clk 0:02:13.4]} 32... Bf3 {[%clk 0:00:54.4]} 33. Bh3
{[%clk 0:02:07.8]} 33... h4 {[%clk 0:00:42.6]} 34. Bf5 {[%clk 0:01:57.7]} 34...
h3 {[%clk 0:00:33.1]} 35. Rxh3 {[%clk 0:01:48.9]} 35... Rxh3 {[%clk 0:00:31.1]}
36. Bxh3 {[%clk 0:01:49.8]} 36... Rg8 {[%clk 0:00:24.9]} 37. a4 {[%clk
0:01:46.9]} 37... Bg4 {[%clk 0:00:24.7]} 38. Bg2 {[%clk 0:01:45.2]} 38... Rh8
{[%clk 0:00:24.7]} 39. a5 {[%clk 0:01:43.7]} 39... Bf3 {[%clk 0:00:20.5]} 40.
Bxf3 {[%clk 0:01:40.3]} 40... exf3 {[%clk 0:00:19.9]} 41. e4 {[%clk 0:01:40.3]}
41... dxe4 {[%clk 0:00:19.1]} 42. Ke3 {[%clk 0:01:40.4]} 42... Re8 {[%clk
0:00:19.2]} 43. c4 {[%clk 0:01:38.8]} 43... Kg6 {[%clk 0:00:18.6]} 44. Be5
{[%clk 0:01:37.4]} 44... Kf5 {[%clk 0:00:18.1]} 45. b4 {[%clk 0:01:37.2]} 45...
Rg8 {[%clk 0:00:15.5]} 46. Bg3 {[%clk 0:01:36.5]} 46... Rh8 {[%clk 0:00:11.2]}
47. d5 {[%clk 0:01:36.2]} 47... cxd5 {[%clk 0:00:10.3]} 48. cxd5 {[%clk
0:01:35.8]} 48... Rh1 {[%clk 0:00:10.6]} 49. Kd2 {[%clk 0:01:34.3]} 49... Rb1
{[%clk 0:00:07.8]} 50. Bd6 {[%clk 0:01:32.1]} 50... Rb3 {[%clk 0:00:07.7]} 51.
Bc5 {[%clk 0:01:31.1]} 51... Rd3+ {[%clk 0:00:07.9]} 52. Kc2 {[%clk 0:01:31.3]}
52... Rxd5 {[%clk 0:00:07.3]} 53. Bxa7 {[%clk 0:01:31.3]} 53... Kg4 {[%clk
0:00:07.4]} 54. Kc3 {[%clk 0:01:30.7]} 54... Kh3 {[%clk 0:00:07.3]} 55. Kc4
{[%clk 0:01:31.6]} 55... Rd3 {[%clk 0:00:04.7]} 56. b5 {[%clk 0:01:32.5]} 56...
Kg2 {[%clk 0:00:04.1]} 57. a6 {[%clk 0:01:32.5]} 57... bxa6 {[%clk 0:00:03.6]}
58. b6 {[%clk 0:01:33.4]} 58... Rd1 {[%clk 0:00:02.3]} 59. Kc3 {[%clk
0:01:29.2]} 59... Rb1 {[%clk 0:00:02.3]} 60. Kc2 {[%clk 0:01:30.1]} 60... Rb5
{[%clk 0:00:02]} 61. b7 {[%clk 0:01:30.1]} 61... Rxb7 {[%clk 0:00:01.7]} 62. Be3
{[%clk 0:01:29]} 62... Rd7 {[%clk 0:00:02.2]} 63. Kc3 {[%clk 0:01:29.8]} 63...
Rd1 {[%clk 0:00:02]} 64. Kc4 {[%clk 0:01:30.5]} 64... Rf1 {[%clk 0:00:02.9]} 65.
Bd4 {[%clk 0:01:31]} 65... Rxf2 {[%clk 0:00:03.7]} 66. Bc5 {[%clk 0:01:31.9]}
66... Re2 {[%clk 0:00:03.6]} 67. Kc3 {[%clk 0:01:31.6]} 67... f2 {[%clk
0:00:04]} 68. Bxf2 {[%clk 0:01:32.4]} 68... Kxf2 {[%clk 0:00:04]} 69. Kd4 {[%clk
0:01:33.2]} 69... e3 {[%clk 0:00:04.4]} 70. Kd3 {[%clk 0:01:33.7]} 70... Rd2+
{[%clk 0:00:05.3]} 71. Kc3 {[%clk 0:01:34.3]} 71... Rd8 {[%clk 0:00:05.7]} 72.
Kb4 {[%clk 0:01:35.2]} 72... e2 {[%clk 0:00:06.5]} 73. Ka5 {[%clk 0:01:36.1]}
73... e1=Q+ {[%clk 0:00:06.5]} 74. Kb6 {[%clk 0:01:37]} 74... Qb1+ {[%clk
0:00:06.7]} 75. Kc7 {[%clk 0:01:37.9]} 75... Qb5 {[%clk 0:00:05.1]} 76. Kxd8
{[%clk 0:01:38.8]} 76... Qb7 {[%clk 0:00:05]} 77. Ke8 {[%clk 0:01:38.2]} 77...
Ke3 {[%clk 0:00:05.9]} 78. Kd8 {[%clk 0:01:39.1]} 78... Kf4 {[%clk 0:00:06.8]}
79. Ke8 {[%clk 0:01:39.2]} 79... Ke5 {[%clk 0:00:07.7]} 80. Kf8 {[%clk
0:01:40.1]} 80... Kf6 {[%clk 0:00:07.7]} 81. Kg8 {[%clk 0:01:41]} 81... Qg7#
{[%clk 0:00:07.5]} 0-1

[Event "*** Titled Tuesday Blitz"]
[Site "Chess.com"]
[Date "2020.03.03"]
[Round "6"]
[White "praveenb2002"]
[Black "Bulldog167"]
[Result "0-1"]
[WhiteElo "2613"]
[BlackElo "2750"]
[TimeControl "180+1"]
[EndTime "10:03:23 PST"]
[Termination "Bulldog167 won on time"]

1. e4 {[%clk 0:03:00.9]} 1... c5 {[%clk 0:02:58.3]} 2. Nf3 {[%clk 0:02:59.4]}
2... d6 {[%clk 0:02:58.6]} 3. d4 {[%clk 0:02:59.6]} 3... cxd4 {[%clk 0:02:59.5]}
4. Nxd4 {[%clk 0:03:00.2]} 4... Nf6 {[%clk 0:03:00]} 5. Nc3 {[%clk 0:03:00.8]}
5... a6 {[%clk 0:03:00.5]} 6. Bg5 {[%clk 0:03:00.8]} 6... Nbd7 {[%clk
0:03:00.4]} 7. Qe2 {[%clk 0:03:00.3]} 7... Qc7 {[%clk 0:03:00.7]} 8. O-O-O
{[%clk 0:02:57.9]} 8... e6 {[%clk 0:03:01]} 9. f4 {[%clk 0:02:53.6]} 9... b5
{[%clk 0:03:00.8]} 10. Nd5 {[%clk 0:02:44.9]} 10... exd5 {[%clk 0:03:00.3]} 11.
exd5+ {[%clk 0:02:45.2]} 11... Be7 {[%clk 0:03:00.4]} 12. Nf5 {[%clk 0:02:40.8]}
12... Nc5 {[%clk 0:02:50.9]} 13. Nxg7+ {[%clk 0:02:23.1]} 13... Kf8 {[%clk
0:02:50.4]} 14. Bh6 {[%clk 0:02:22.2]} 14... Kg8 {[%clk 0:02:48.5]} 15. f5
{[%clk 0:02:19]} 15... Nce4 {[%clk 0:02:16.3]} 16. Ne8 {[%clk 0:01:59]} 16...
Nxe8 {[%clk 0:01:37.7]} 17. Qxe4 {[%clk 0:01:57.5]} 17... Bf8 {[%clk 0:01:04.7]}
18. Qg4+ {[%clk 0:01:23]} 18... Bg7 {[%clk 0:01:04.2]} 19. Bd3 {[%clk
0:01:00.3]} 19... Kf8 {[%clk 0:00:55.9]} 20. Qh4 {[%clk 0:00:39.8]} 20... f6
{[%clk 0:00:35.6]} 21. Rde1 {[%clk 0:00:37.9]} 21... Qf7 {[%clk 0:00:30.3]} 22.
Re3 {[%clk 0:00:34.4]} 22... Bd7 {[%clk 0:00:24.4]} 23. Rhe1 {[%clk 0:00:33.8]}
23... Rg8 {[%clk 0:00:17.4]} 24. Bf4 {[%clk 0:00:31.9]} 24... Rh8 {[%clk
0:00:11.5]} 25. g4 {[%clk 0:00:27.3]} 25... h6 {[%clk 0:00:11.5]} 26. Qg3 {[%clk
0:00:26.5]} 26... b4 {[%clk 0:00:07.3]} 27. Bxd6+ {[%clk 0:00:26.6]} 27... Kg8
{[%clk 0:00:03]} 28. Re7 {[%clk 0:00:26]} 28... Qxd5 {[%clk 0:00:03.5]} 29. Rxd7
{[%clk 0:00:23.4]} 29... Qxa2 {[%clk 0:00:03.6]} 30. Qe3 {[%clk 0:00:20.7]}
30... Nxd6 {[%clk 0:00:03.7]} 31. Rxd6 {[%clk 0:00:19.6]} 31... Qa1+ {[%clk
0:00:04.1]} 32. Kd2 {[%clk 0:00:19.3]} 32... Qxb2 {[%clk 0:00:05]} 33. Qe6+
{[%clk 0:00:19.4]} 33... Kh7 {[%clk 0:00:05.3]} 34. Qf7 {[%clk 0:00:08.2]} 34...
Qc3+ {[%clk 0:00:05.1]} 35. Kd1 {[%clk 0:00:08.6]} 35... b3 {[%clk 0:00:04.4]}
36. Qg6+ {[%clk 0:00:08]} 36... Kg8 {[%clk 0:00:04.8]} 37. Re7 {[%clk
0:00:04.2]} 37... bxc2+ {[%clk 0:00:05]} 38. Bxc2 {[%clk 0:00:04.4]} 38... Qf3+
{[%clk 0:00:03.5]} 39. Kc1 {[%clk 0:00:04.3]} 39... Qa3+ {[%clk 0:00:02.2]} 0-1

[Event "*** Titled Tuesday Blitz"]
[Site "Chess.com"]
[Date "2020.03.03"]
[Round "6"]
[White "MokshAD1603"]
[Black "Vugar_Manafov"]
[Result "0-1"]
[WhiteElo "2203"]
[BlackElo "2588"]
[TimeControl "180+1"]
[EndTime "10:03:25 PST"]
[Termination "Vugar_Manafov won by checkmate"]

1. d4 {[%clk 0:03:00.9]} 1... Nf6 {[%clk 0:03:00]} 2. c4 {[%clk 0:03:00.4]} 2...
e6 {[%clk 0:02:59.6]} 3. Nc3 {[%clk 0:03:00.2]} 3... Bb4 {[%clk 0:02:59.3]} 4.
f3 {[%clk 0:03:00.9]} 4... O-O {[%clk 0:02:53.4]} 5. a3 {[%clk 0:03:00.8]} 5...
Bxc3+ {[%clk 0:02:52.9]} 6. bxc3 {[%clk 0:03:01.7]} 6... b6 {[%clk 0:02:48.5]}
7. e4 {[%clk 0:03:00.3]} 7... Ne8 {[%clk 0:02:48.5]} 8. Bd3 {[%clk 0:02:54.5]}
8... Ba6 {[%clk 0:02:48.5]} 9. Ne2 {[%clk 0:02:53.6]} 9... Nc6 {[%clk
0:02:48.7]} 10. e5 {[%clk 0:02:24.9]} 10... Na5 {[%clk 0:02:45]} 11. c5 {[%clk
0:02:13]} 11... Bxd3 {[%clk 0:02:33.2]} 12. Qxd3 {[%clk 0:02:13.9]} 12... bxc5
{[%clk 0:02:32.9]} 13. Rb1 {[%clk 0:02:06.2]} 13... cxd4 {[%clk 0:02:29.7]} 14.
cxd4 {[%clk 0:02:05.3]} 14... d6 {[%clk 0:02:22.3]} 15. Bd2 {[%clk 0:01:58.7]}
15... Nc6 {[%clk 0:02:08.5]} 16. Qb5 {[%clk 0:01:58.6]} 16... Rb8 {[%clk
0:02:05.6]} 17. Qd3 {[%clk 0:01:51.7]} 17... Rxb1+ {[%clk 0:02:04.1]} 18. Qxb1
{[%clk 0:01:51.7]} 18... dxe5 {[%clk 0:02:05]} 19. O-O {[%clk 0:01:28.7]} 19...
exd4 {[%clk 0:01:54.3]} 20. Rc1 {[%clk 0:01:26.7]} 20... Ne7 {[%clk 0:01:23.1]}
21. Bb4 {[%clk 0:01:21]} 21... Nf6 {[%clk 0:01:02]} 22. Qd3 {[%clk 0:01:07.7]}
22... e5 {[%clk 0:00:59]} 23. Ng3 {[%clk 0:01:03.8]} 23... Re8 {[%clk
0:00:56.4]} 24. Qa6 {[%clk 0:00:52.7]} 24... Qb8 {[%clk 0:00:33.9]} 25. Ba5
{[%clk 0:00:42.5]} 25... Qb2 {[%clk 0:00:28]} 26. Rxc7 {[%clk 0:00:40]} 26...
Ned5 {[%clk 0:00:23]} 27. Rb7 {[%clk 0:00:37.3]} 27... Qc1+ {[%clk 0:00:19.3]}
28. Qf1 {[%clk 0:00:35.6]} 28... Qxa3 {[%clk 0:00:19.4]} 29. Rxa7 {[%clk
0:00:32.8]} 29... Ne3 {[%clk 0:00:19.4]} 30. Qf2 {[%clk 0:00:30.3]} 30... Nfd5
{[%clk 0:00:10.3]} 31. h4 {[%clk 0:00:26.9]} 31... Nf4 {[%clk 0:00:10]} 32. Bb6
{[%clk 0:00:20]} 32... Qc1+ {[%clk 0:00:09]} 33. Kh2 {[%clk 0:00:20.4]} 33...
Nexg2 {[%clk 0:00:06.9]} 34. Nf5 {[%clk 0:00:20.4]} 34... Ne3 {[%clk 0:00:05.9]}
35. Ne7+ {[%clk 0:00:16.4]} 35... Kh8 {[%clk 0:00:05.3]} 36. Rc7 {[%clk
0:00:10.3]} 36... Qb1 {[%clk 0:00:03.6]} 37. Bc5 {[%clk 0:00:09.9]} 37... Nf1+
{[%clk 0:00:03.6]} 38. Kg1 {[%clk 0:00:08.7]} 38... Ng3+ {[%clk 0:00:03.8]} 39.
Kh2 {[%clk 0:00:09]} 39... Qh1+ {[%clk 0:00:03.7]} 40. Kxg3 {[%clk 0:00:08.3]}
40... Qh3# {[%clk 0:00:04.6]} 0-1

[Event "*** Titled Tuesday Blitz"]
[Site "Chess.com"]
[Date "2020.03.03"]
[Round "6"]
[White "kleinebeer98"]
[Black "Oleksandr_Bortnyk"]
[Result "0-1"]
[WhiteElo "2712"]
[BlackElo "2956"]
[TimeControl "180+1"]
[EndTime "10:03:29 PST"]
[Termination "Oleksandr_Bortnyk won by checkmate"]

1. e4 {[%clk 0:03:00.9]} 1... Nf6 {[%clk 0:02:55.2]} 2. Nc3 {[%clk 0:02:59.5]}
2... d5 {[%clk 0:02:50.7]} 3. exd5 {[%clk 0:02:59]} 3... Nxd5 {[%clk 0:02:51.6]}
4. Nge2 {[%clk 0:02:57.2]} 4... Bg4 {[%clk 0:02:34.5]} 5. h3 {[%clk 0:02:51.4]}
5... Bh5 {[%clk 0:02:33.8]} 6. g4 {[%clk 0:02:46.2]} 6... Bg6 {[%clk 0:02:33.6]}
7. Bg2 {[%clk 0:02:46.7]} 7... e6 {[%clk 0:02:32.3]} 8. Nxd5 {[%clk 0:02:41.5]}
8... exd5 {[%clk 0:02:32.3]} 9. Nf4 {[%clk 0:02:42.4]} 9... c6 {[%clk
0:02:31.3]} 10. h4 {[%clk 0:02:37.1]} 10... Bd6 {[%clk 0:02:17.9]} 11. d3 {[%clk
0:02:37.3]} 11... Qc7 {[%clk 0:02:08.2]} 12. Qf3 {[%clk 0:02:34.5]} 12... h6
{[%clk 0:01:05.6]} 13. Nxg6 {[%clk 0:02:24.9]} 13... fxg6 {[%clk 0:01:06.5]} 14.
g5 {[%clk 0:02:25.8]} 14... Nd7 {[%clk 0:01:04.8]} 15. Bh3 {[%clk 0:02:13.3]}
15... O-O-O {[%clk 0:01:02.5]} 16. Be3 {[%clk 0:02:13.1]} 16... Qa5+ {[%clk
0:00:53.3]} 17. c3 {[%clk 0:02:10]} 17... Kb8 {[%clk 0:00:52.6]} 18. Bxd7 {[%clk
0:02:01.9]} 18... Rxd7 {[%clk 0:00:53.5]} 19. gxh6 {[%clk 0:02:02.8]} 19... gxh6
{[%clk 0:00:52]} 20. Qf6 {[%clk 0:02:03.3]} 20... Rg8 {[%clk 0:00:36.1]} 21. Qe6
{[%clk 0:01:57.5]} 21... Rdd8 {[%clk 0:00:34.9]} 22. Kd2 {[%clk 0:01:28.1]}
22... d4 {[%clk 0:00:30.9]} 23. Bxd4 {[%clk 0:01:23.2]} 23... Bf4+ {[%clk
0:00:30.8]} 24. Be3 {[%clk 0:01:23.6]} 24... Bxe3+ {[%clk 0:00:19.9]} 25. Qxe3
{[%clk 0:01:24.5]} 25... Rge8 {[%clk 0:00:12.9]} 26. Qg3+ {[%clk 0:01:23.8]}
26... Ka8 {[%clk 0:00:13.2]} 27. Rhe1 {[%clk 0:01:20.7]} 27... Rf8 {[%clk
0:00:13.7]} 28. Re3 {[%clk 0:01:09.5]} 28... a6 {[%clk 0:00:11.6]} 29. a3 {[%clk
0:01:00.1]} 29... Qb5 {[%clk 0:00:06.5]} 30. b4 {[%clk 0:00:59.9]} 30... Qa4
{[%clk 0:00:05.4]} 31. d4 {[%clk 0:00:46.3]} 31... Qb3 {[%clk 0:00:05.7]} 32.
Rc1 {[%clk 0:00:37.4]} 32... Qxa3 {[%clk 0:00:05.3]} 33. Rc2 {[%clk 0:00:36.4]}
33... Qa1 {[%clk 0:00:05.4]} 34. Re2 {[%clk 0:00:34.5]} 34... Qa4 {[%clk
0:00:02.2]} 35. Qxg6 {[%clk 0:00:33.4]} 35... Rh8 {[%clk 0:00:02.1]} 36. Re7
{[%clk 0:00:29.5]} 36... Qb5 {[%clk 0:00:02.3]} 37. Kc1 {[%clk 0:00:26.2]} 37...
h5 {[%clk 0:00:02.4]} 38. Kb2 {[%clk 0:00:24.7]} 38... Rhf8 {[%clk 0:00:02.2]}
39. Rce2 {[%clk 0:00:23.7]} 39... Rf3 {[%clk 0:00:01.7]} 40. Re8 {[%clk
0:00:23]} 40... Rxe8 {[%clk 0:00:02.2]} 41. Qxe8+ {[%clk 0:00:22]} 41... Ka7
{[%clk 0:00:03.1]} 42. Qe7 {[%clk 0:00:22.7]} 42... Qd5 {[%clk 0:00:02.9]} 43.
Kc2 {[%clk 0:00:11.5]} 43... Qa2+ {[%clk 0:00:02.6]} 44. Kd1 {[%clk 0:00:10.1]}
44... Qb1+ {[%clk 0:00:02.6]} 45. Kd2 {[%clk 0:00:10.5]} 45... Rd3# {[%clk
0:00:03.5]} 0-1